bitfinex-derivatives/quotes_SOLF0:USTF0_20260302
["timestamp","ask_amount","ask_price","bid_price","bid_amount"]
[1772462326728,30.49430355,84.098,83.971,28.24710861]
[1772462326928,30.49430355,84.098,83.973,28.24710861]
[1772462327131,30.49430355,84.098,83.98,28.24710861]
[1772462327329,30.49430355,84.098,83.99,30.08476068]
[1772462327530,30.68598584,84.096,83.99,30.08476068]
[1772462327731,30.68598584,84.094,83.99,30.08476068]
[1772462327932,30.68598584,84.071,83.99,30.08476068]
[1772462328129,30.68598584,84.102,83.99,30.08476068]
[1772462328438,10.709,84.06,83.991,10.718]
[1772462328637,30.68598584,84.102,83.99,30.08476068]
[1772462329037,30.68598584,84.102,84.03,30.08476068]
[1772462329233,30.68598584,84.089,83.972,30.08476068]
[1772462329433,30.68598584,84.084,83.972,30.08476068]
[1772462329633,30.68598584,84.051,83.972,30.08476068]
[1772462329937,19.83048768,84.09,83.972,30.08476068]
[1772462329938,30.68598584,84.075,83.972,30.08476068]
[1772462330332,166.543,84.085,83.948,30.08476068]
[1772462330538,166.528,84.093,83.948,30.08476068]
[1772462330539,30.68598584,84.059,83.948,30.08476068]
[1772462330731,10.71,84.056,83.987,10.718]
[1772462330933,30.68598584,84.099,83.972,30.08476068]
[1772462331540,10.707,84.076,84.002,10.716]
[1772462331737,30.68598584,84.099,84.002,10.716]
[1772462331938,30.68598584,84.099,83.978,30.08476068]
[1772462332334,166.542,84.086,83.978,30.08476068]
[1772462332542,30.68598584,84.049,83.951,30.08476068]
[1772462334243,10.709,84.06,83.996,10.717]
[1772462334436,30.68598584,84.071,83.971,30.08476068]
[1772462334632,177.3730973,84.149,84.023,10.714]
[1772462334633,10.704,84.097,84.023,10.714]
[1772462334839,30.68598584,84.134,84.024,30.08476068]
[1772462335237,10.701,84.123,84.024,30.08476068]
[1772462335439,30.68598584,84.134,84.024,30.08476068]
[1772462336335,30.68598584,84.159,84.051,30.08476068]
[1772462336640,30.68598584,84.205,84.081,30.08476068]
[1772462336837,30.68598584,84.175,84.081,30.08476068]
[1772462337232,30.68598584,84.168,84.059,10.6393695]
[1772462337438,30.68598584,84.159,84.053,30.08476068]
[1772462338739,30.68598584,84.148,84.032,30.08476068]
[1772462339132,10.701,84.127,84.063,30.08476068]
[1772462339333,30.68598584,84.148,84.063,30.08476068]
[1772462339541,30.68598584,84.148,84.033,30.08476068]
[1772462339939,10.703,84.108,84.033,30.08476068]
[1772462340441,30.68598584,84.148,84.067,30.08476068]
[1772462340643,30.68598584,84.198,84.07,19.8274298]
[1772462340839,30.68598584,84.198,84.1,30.08476068]
[1772462341037,30.68598584,84.198,84.075,40.72413018]
[1772462341244,30.68598584,84.198,84.075,30.08476068]
[1772462341745,30.68598584,84.198,84.091,40.78976068]
[1772462341945,30.68598584,84.198,84.092,30.08476068]
[1772462342544,30.68598584,84.239,84.101,30.08476068]
[1772462342737,10.691,84.199,84.125,10.701]
[1772462342943,30.68598584,84.215,84.101,30.08476068]
[1772462343139,166.295,84.211,84.101,30.08476068]
[1772462343350,30.68598584,84.176,84.065,30.08476068]
[1772462343748,10.699,84.14,84.073,10.707]
[1772462343950,30.68598584,84.159,84.065,30.08476068]
[1772462344345,10.701,84.123,84.065,30.08476068]
[1772462344543,30.68598584,84.159,84.045,30.08476068]
[1772462344747,30.68598584,84.159,84.047,30.08476068]
[1772462344942,19.8274298,84.11,83.994,30.08476068]
[1772462345149,30.68598584,84.106,83.994,30.08476068]
[1772462345446,19.8274298,84.11,83.979,10.6393695]
[1772462345447,30.68598584,84.079,83.979,10.6393695]
[1772462345643,30.68598584,84.079,83.967,10.6393695]
[1772462345845,19.8274298,84.08,83.93,19.8274298]
[1772462345846,166.6,84.057,83.943,10.6393695]
[1772462346047,30.68598584,84.032,83.916,30.08476068]
[1772462346347,30.68598584,84.002,83.916,30.08476068]
[1772462346548,30.68598584,84.028,83.93,30.08476068]
[1772462346850,30.68598584,84.08,83.941,30.08476068]
[1772462347050,10.709,84.064,83.978,10.719]
[1772462347244,30.68598584,84.064,83.972,30.08476068]
[1772462347445,10.708,84.067,83.984,10.719]
[1772462347945,30.68598584,84.087,83.985,30.08476068]
[1772462348146,10.709,84.058,83.985,30.08476068]
[1772462348339,30.68598584,84.087,83.985,30.08476068]
[1772462348644,10.711,84.047,83.961,30.08476068]
[1772462348847,30.68598584,84.104,83.977,30.08476068]
[1772462349050,30.68598584,84.131,84.008,30.08476068]
[1772462349346,30.68598584,84.177,84.042,30.08476068]
[1772462349547,30.68598584,84.177,84.046,30.08476068]
[1772462349743,30.68598584,84.177,84.073,30.08476068]
[1772462350348,10.695,84.17,84.087,30.08476068]
[1772462350538,30.68598584,84.177,84.087,30.08476068]
[1772462350743,30.68598584,84.177,84.041,30.08476068]
[1772462350939,30.68598584,84.177,84.047,30.08476068]
[1772462351145,30.68598584,84.168,84.047,30.08476068]
[1772462351539,30.68598584,84.166,84.044,10.6513449]
[1772462351745,30.68598584,84.166,84.037,30.08476068]
[1772462351949,10.703,84.111,84.037,30.08476068]
[1772462352247,30.68598584,84.124,84.037,30.08476068]
[1772462352445,30.68598584,84.149,84.037,30.08476068]
[1772462352644,30.68598584,84.149,84.043,30.08476068]
[1772462352846,30.68598584,84.149,84.045,30.08476068]
[1772462353044,10.701,84.123,84.045,30.08476068]
[1772462353244,30.68598584,84.149,84.045,30.08476068]
[1772462354250,41.38398584,84.149,84.061,10.709]
[1772462354451,30.68598584,84.149,84.061,10.709]
[1772462354745,30.68598584,84.149,84.045,30.08476068]
[1772462354951,28.46961953,84.178,84.047,28.6038814]
[1772462355350,28.46961953,84.178,84.046,166.618]
[1772462355351,28.46961953,84.178,84.052,28.6038814]
[1772462355653,28.46961953,84.178,84.097,10.704]
[1772462355847,28.46961953,84.178,84.084,28.6038814]
[1772462356748,10.695,84.167,84.084,28.6038814]
[1772462356948,28.46961953,84.178,84.056,28.6038814]
[1772462357149,28.46961953,84.138,84.03,28.6038814]
[1772462357649,27.8892804,84.137,84.03,28.6038814]
[1772462358049,27.8892804,84.179,84.056,27.26854503]
[1772462358250,166.363,84.176,84.056,27.26854503]
[1772462358448,27.8892804,84.175,84.056,27.26854503]
[1772462358653,27.8892804,84.134,84.027,27.26854503]
[1772462359355,19.8274298,84.17,84.04,19.8274298]
[1772462359356,27.8892804,84.16,84.04,19.8274298]
[1772462359558,27.8892804,84.16,84.052,27.26854503]
[1772462359751,27.8892804,84.16,84.056,27.26854503]
[1772462359952,27.8892804,84.16,84.059,27.26854503]
[1772462360460,10.699,84.138,84.059,27.26854503]
[1772462360658,27.8892804,84.16,84.059,27.26854503]
[1772462361153,27.8892804,84.16,84.08,10.706]
[1772462361351,166.269,84.224,84.059,27.26854503]
[1772462361352,27.8892804,84.187,84.059,27.26854503]
[1772462361656,27.8892804,84.187,84.043,166.626]
[1772462361657,27.8892804,84.223,84.091,27.26854503]
[1772462361853,10.693,84.183,84.107,10.703]
[1772462362152,166.379,84.168,84.045,10.6513449]
[1772462362354,19.8274298,84.14,84.034,27.26854503]
[1772462362557,19.8274298,84.14,84.021,27.26854503]
[1772462362747,27.8892804,84.139,84.021,27.26854503]
[1772462362952,27.8892804,84.104,83.998,10.6513449]
[1772462363253,27.8892804,84.1,83.99,10.6513449]
[1772462363455,27.8892804,84.1,83.986,27.26854503]
[1772462363954,10.709,84.063,83.986,27.26854503]
[1772462364251,10.709,84.063,83.956,452.10635139]
[1772462364252,27.8892804,84.109,83.99,27.26854503]
[1772462364459,10.704,84.1,84.034,10.712]
[1772462364759,27.8892804,84.099,83.991,27.26854503]
[1772462364959,27.8892804,84.129,84.001,27.26854503]
[1772462365161,27.8892804,84.129,84.026,27.26854503]
[1772462365360,27.8892804,84.129,84.031,27.26854503]
[1772462365657,10.699,84.139,84.035,27.26854503]
[1772462365855,10.699,84.139,84.038,27.26854503]
[1772462366052,27.8892804,84.159,84.044,27.26854503]
[1772462366253,27.8892804,84.123,84.044,27.26854503]
[1772462366456,27.8892804,84.151,84.044,27.26854503]
[1772462366757,10.701,84.122,84.046,10.711]
[1772462366950,27.8892804,84.145,84.017,10.6513449]
[1772462367150,27.8892804,84.145,84.016,27.26854503]
[1772462367458,27.8892804,84.109,83.989,10.6513449]
[1772462367759,27.8892804,84.109,83.991,27.26854503]
[1772462367961,27.8892804,84.109,84.0,27.26854503]
[1772462368162,27.8892804,84.109,84.018,27.26854503]
[1772462368350,10.703,84.108,84.032,10.712]
[1772462368555,27.8892804,84.109,84.007,10.6513449]
[1772462368756,27.8892804,84.109,84.0,19.8274298]
[1772462368757,27.8892804,84.109,84.012,37.91988993]
[1772462368960,27.8892804,84.109,84.012,27.26854503]
[1772462369357,27.8892804,84.109,84.011,10.6513449]
[1772462369358,27.8892804,84.109,84.016,27.26854503]
[1772462369755,27.8892804,84.107,84.006,10.6513449]
[1772462370056,27.8892804,84.099,83.988,27.26854503]
[1772462370357,27.8892804,84.099,83.992,27.26854503]
[1772462370555,27.8892804,84.099,84.0,27.26854503]
[1772462370758,27.8892804,84.099,84.022,10.714]
[1772462370953,27.8892804,84.099,84.018,10.6513449]
[1772462371157,27.8892804,84.099,84.016,27.26854503]
[1772462371354,10.706,84.084,84.007,10.716]
[1772462371554,27.8892804,84.099,84.002,10.6513449]
[1772462371861,10.709,84.063,83.994,10.6513449]
[1772462372065,27.8892804,84.074,83.991,27.26854503]
[1772462372258,27.8892804,84.119,83.992,27.26854503]
[1772462372559,10.705,84.095,84.023,10.714]
[1772462372753,27.8892804,84.094,83.988,10.6513449]
[1772462372958,10.707,84.077,84.006,10.716]
[1772462373261,27.8892804,84.094,83.999,10.6513449]
[1772462373458,27.8892804,84.094,84.001,27.26854503]
[1772462374161,10.702,84.118,84.053,10.71]
[1772462374362,27.8892804,84.121,84.034,27.26854503]
[1772462374563,27.8892804,84.121,84.035,27.26854503]
[1772462374762,27.8892804,84.121,84.045,27.26854503]
[1772462374960,27.8892804,84.159,84.045,27.26854503]
[1772462375158,27.8892804,84.219,84.076,27.26854503]
[1772462375358,27.8892804,84.189,84.086,10.6513449]
[1772462375563,27.8892804,84.189,84.087,10.6513449]
[1772462375762,10.695,84.167,84.098,10.704]
[1772462375954,27.8892804,84.189,84.083,27.26854503]
[1772462376757,27.8892804,84.189,84.103,27.26854503]
[1772462376958,10.693,84.188,84.12,10.701]
[1772462377359,27.8892804,84.187,84.089,10.6513449]
[1772462377558,10.693,84.186,84.117,10.702]
[1772462377759,27.8892804,84.186,84.094,27.26854503]
[1772462378066,27.8892804,84.186,84.077,27.26854503]
[1772462378259,27.8892804,84.186,84.084,27.26854503]
[1772462378460,27.8892804,84.186,84.088,27.26854503]
[1772462379068,27.8892804,84.186,84.095,27.26854503]
[1772462379359,10.691,84.204,84.1,27.26854503]
[1772462379560,27.8892804,84.203,84.101,37.91988993]
[1772462379761,27.8892804,84.203,84.087,10.6513449]
[1772462380063,27.8892804,84.177,84.067,10.6513449]
[1772462380262,27.8892804,84.129,84.044,14.16496135]
[1772462380469,27.8892804,84.098,84.018,27.26854503]
[1772462380664,27.8892804,84.098,83.987,27.26854503]
[1772462380870,27.8892804,84.098,83.997,27.26854503]
[1772462381058,10.706,84.088,83.997,27.26854503]
[1772462381264,27.8892804,84.124,84.002,27.26854503]
[1772462381458,38.5902804,84.124,84.053,10.71]
[1772462381672,27.8892804,84.124,84.035,27.26854503]
[1772462382063,27.8892804,84.124,84.061,10.709]
[1772462382262,27.8892804,84.15,84.035,27.26854503]
[1772462382864,27.8892804,84.15,84.037,27.26854503]
[1772462383064,27.8892804,84.179,84.047,14.16496135]
[1772462383360,27.8892804,84.179,84.067,27.26854503]
[1772462383560,27.8892804,84.179,84.063,14.16496135]
[1772462383561,27.8892804,84.179,84.072,27.26854503]
[1772462383870,27.8892804,84.179,84.074,27.26854503]
[1772462384066,27.8892804,84.174,84.043,27.26854503]
[1772462384366,27.8892804,84.142,84.052,27.26854503]
[1772462384573,27.8892804,84.168,84.052,27.26854503]
[1772462384769,27.8892804,84.168,84.046,14.16496135]
[1772462384770,27.8892804,84.168,84.068,27.26854503]
[1772462384971,27.8892804,84.168,84.072,27.26854503]
[1772462385272,29.66419397,84.21,84.109,10.703]
[1772462385273,10.693,84.189,84.109,10.703]
[1772462385479,27.8892804,84.209,84.097,27.26854503]
[1772462385676,10.693,84.185,84.099,10.704]
[1772462385969,27.8892804,84.205,84.098,27.26854503]
[1772462386171,10.697,84.157,84.098,27.26854503]
[1772462386469,27.8892804,84.162,84.046,14.16496135]
[1772462386665,27.8892804,84.16,84.047,27.26854503]
[1772462386869,10.701,84.12,84.047,27.26854503]
[1772462387074,27.8892804,84.134,84.047,27.26854503]
[1772462387269,10.703,84.108,84.03,29.66419397]
[1772462387467,27.8892804,84.134,84.022,28.61838471]
[1772462388069,10.704,84.096,84.022,28.61838471]
[1772462388275,29.10971254,84.135,84.022,28.61838471]
[1772462388473,29.10971254,84.135,84.033,28.61838471]
[1772462388664,29.10971254,84.135,84.048,10.71]
[1772462388871,29.10971254,84.135,84.053,28.61838471]
[1772462389074,29.10971254,84.135,84.035,14.16496135]
[1772462389371,29.10971254,84.135,84.027,28.61838471]
[1772462389580,29.10971254,84.135,84.006,14.16496135]
[1772462389873,29.10971254,84.103,84.012,14.16496135]
[1772462390075,29.10971254,84.103,83.997,14.16496135]
[1772462390273,10.707,84.075,83.996,10.717]
[1772462390673,29.10971254,84.103,83.984,42.78334606]
[1772462390874,29.10971254,84.103,83.988,28.61838471]
[1772462391073,29.10971254,84.103,84.01,14.16496135]
[1772462391373,29.10971254,84.103,84.006,28.61838471]
[1772462391374,29.10971254,84.103,84.013,14.16496135]
[1772462391581,29.10971254,84.103,84.013,42.78334606]
[1772462391780,29.10971254,84.103,84.036,10.712]
[1772462391984,29.10971254,84.129,84.034,14.16496135]
[1772462392172,10.702,84.115,84.044,24.87596135]
[1772462392372,10.702,84.115,84.044,10.711]
[1772462392578,29.10971254,84.129,84.031,42.78334606]
[1772462392772,29.10971254,84.129,84.065,10.708]
[1772462393084,29.10971254,84.129,84.047,14.16496135]
[1772462393278,10.702,84.116,84.054,10.71]
[1772462393483,10.702,84.116,84.031,28.61838471]
[1772462393484,29.10971254,84.115,84.037,14.16496135]
[1772462393681,29.10971254,84.115,84.023,14.16496135]
[1772462393879,29.10971254,84.115,84.018,14.16496135]
[1772462394088,29.10971254,84.115,84.004,14.16496135]
[1772462394385,29.10971254,84.115,83.989,14.16496135]
[1772462394570,29.10971254,84.08,84.005,10.716]
[1772462394770,29.10971254,84.08,83.994,14.16496135]
[1772462394771,29.10971254,84.08,83.985,14.16496135]
[1772462394982,29.10971254,84.08,83.999,14.16496135]
[1772462395279,29.10971254,84.085,84.013,14.16496135]
[1772462395578,29.10971254,84.124,84.012,14.16496135]
[1772462395880,29.10971254,84.074,83.991,14.16496135]
[1772462396077,29.10971254,84.074,83.987,28.61838471]
[1772462396386,29.10971254,84.129,84.014,14.16496135]
[1772462396582,29.10971254,84.129,84.012,14.16496135]
[1772462396784,29.10971254,84.129,84.009,28.61838471]
[1772462396983,29.10971254,84.082,84.021,10.714]
[1772462398178,29.66419397,84.13,83.989,21.41937001]
[1772462398179,29.10971254,84.107,83.998,28.61838471]
[1772462398376,29.10971254,84.099,83.977,14.16496135]
[1772462398577,29.10971254,84.042,83.967,10.721]
[1772462398985,29.10971254,84.042,83.947,28.61838471]
[1772462399284,10.713,84.033,83.956,10.722]
[1772462399480,39.82271254,84.033,83.956,10.722]
[1772462399684,29.10971254,84.033,83.947,28.61838471]
[1772462400479,29.10971254,84.029,83.933,28.61838471]
[1772462400681,29.10971254,84.079,83.951,28.61838471]
[1772462400880,29.10971254,84.079,83.953,28.61838471]
[1772462401081,10.707,84.073,83.988,28.61838471]
[1772462401289,29.10971254,84.079,83.988,28.61838471]
[1772462401483,10.713,84.033,83.964,14.16496135]
[1772462401679,29.10971254,84.038,83.963,28.61838471]
[1772462401680,29.10971254,84.038,83.968,14.16496135]
[1772462401884,29.10971254,84.065,83.967,28.61838471]
[1772462402082,29.10971254,84.065,83.993,10.718]
[1772462402284,29.10971254,84.09,83.971,28.61838471]
[1772462402484,29.10971254,84.09,83.975,28.61838471]
[1772462402684,29.10971254,84.09,83.983,14.16496135]
[1772462402988,29.10971254,84.084,83.978,28.61838471]
[1772462403585,29.66419397,84.11,83.978,28.61838471]
[1772462403782,29.10971254,84.109,84.003,166.704]
[1772462403982,29.10971254,84.109,84.004,28.61838471]
[1772462404182,10.704,84.099,84.035,10.712]
[1772462404389,29.10971254,84.109,84.004,28.61838471]
[1772462404588,29.10971254,84.109,84.015,28.61838471]
[1772462405390,29.10971254,84.134,84.04,28.61838471]
[1772462405887,29.10971254,84.159,84.041,28.61838471]
[1772462406291,29.10971254,84.159,84.067,28.61838471]
[1772462406690,29.10971254,84.219,84.067,28.61838471]
[1772462406892,29.10971254,84.195,84.077,28.61838471]
[1772462407387,29.10971254,84.185,84.107,10.703]
[1772462407593,29.10971254,84.185,84.077,28.61838471]
[1772462407989,29.10971254,84.181,84.077,28.61838471]
[1772462408489,29.10971254,84.175,84.077,28.61838471]
[1772462408694,29.10971254,84.172,84.041,14.16496135]
[1772462408894,29.10971254,84.159,84.042,28.61838471]
[1772462409195,29.10971254,84.136,84.042,28.61838471]
[1772462409992,10.7,84.132,84.042,28.61838471]
[1772462410198,29.10971254,84.136,84.042,28.61838471]
[1772462411088,29.10971254,84.136,84.074,10.707]
[1772462411288,29.10971254,84.136,84.042,28.61838471]
[1772462411600,29.10971254,84.136,84.02,28.61838471]
[1772462411888,29.66419397,84.16,84.012,166.687]
[1772462411889,29.10971254,84.134,84.072,10.707]
[1772462412395,29.10971254,84.134,84.062,10.709]
[1772462412597,29.10971254,84.134,84.047,28.61838471]
[1772462412793,29.10971254,84.132,84.047,28.61838471]
[1772462413497,29.10971254,84.11,84.023,28.61838471]
[1772462413896,29.10971254,84.11,84.014,14.16496135]
[1772462413897,29.10971254,84.136,84.026,28.61838471]
[1772462414098,28.50533696,84.121,84.026,28.61838471]
[1772462414290,28.50533696,84.121,84.002,26.51924318]
[1772462414499,29.66419397,84.13,84.002,26.51924318]
[1772462414500,28.50533696,84.091,84.029,10.713]
[1772462414694,28.50533696,84.091,84.002,26.51924318]
[1772462415598,10.707,84.08,84.002,26.51924318]
[1772462415791,166.438,84.138,83.98,29.66419397]
[1772462415792,28.50533696,84.119,84.006,26.51924318]
[1772462415992,28.50533696,84.119,84.011,26.51924318]
[1772462416194,28.50533696,84.119,84.013,26.51924318]
[1772462416898,10.704,84.1,84.035,10.712]
[1772462417101,28.50533696,84.099,83.988,26.51924318]
[1772462417394,27.00826524,84.097,83.967,14.26080949]
[1772462417596,29.66419397,84.1,83.967,14.26080949]
[1772462417597,27.00826524,84.048,83.967,14.26080949]
[1772462417797,27.00826524,84.048,83.94,29.66419397]
[1772462417798,27.00826524,84.048,83.968,26.93590717]
[1772462418098,10.711,84.046,83.968,26.93590717]
[1772462418293,27.00826524,84.048,83.968,26.93590717]
[1772462419298,10.711,84.047,83.985,10.718]
[1772462419592,27.00826524,84.046,83.946,59.32821072]
[1772462419795,27.00826524,84.046,83.946,32.39230355]
[1772462419994,27.00826524,84.059,83.949,26.93590717]
[1772462420393,27.00826524,84.059,83.946,32.39230355]
[1772462420594,10.715,84.012,83.948,10.723]
[1772462420787,27.00826524,84.011,83.925,26.93590717]
[1772462421296,27.00826524,84.059,83.925,26.93590717]
[1772462421494,10.713,84.03,83.956,10.722]
[1772462421793,27.00826524,84.034,83.935,26.93590717]
[1772462421995,27.00826524,84.089,83.957,26.93590717]
[1772462422199,27.00826524,84.061,83.988,10.718]
[1772462422596,27.00826524,84.061,83.962,14.26080949]
[1772462422796,27.00826524,84.061,83.963,26.93590717]
[1772462422992,27.00826524,84.086,83.963,26.93590717]
[1772462423400,27.00826524,84.051,83.965,10.721]
[1772462423601,27.00826524,84.051,83.939,26.93590717]
[1772462424497,27.00826524,84.051,83.92,29.66419397]
[1772462424498,27.00826524,84.049,83.92,29.66419397]
[1772462424694,27.00826524,84.049,83.927,26.93590717]
[1772462425094,27.00826524,84.014,83.927,26.93590717]
[1772462425495,10.715,84.011,83.937,10.725]
[1772462425700,27.00826524,84.014,83.927,26.93590717]
[1772462426000,27.00826524,84.04,83.927,26.93590717]
[1772462426204,27.00826524,84.038,83.927,26.93590717]
[1772462426695,27.00826524,84.038,83.928,166.854]
[1772462426901,27.00826524,84.038,83.935,26.93590717]
[1772462427097,10.713,84.027,83.935,26.93590717]
[1772462427293,27.00826524,84.026,83.935,26.93590717]
[1772462427499,27.00826524,84.026,83.91,26.93590717]
[1772462427705,27.00826524,83.998,83.917,10.727]
[1772462428203,29.66419397,84.03,83.917,26.93590717]
[1772462428204,27.00826524,84.016,83.917,26.93590717]
[1772462428901,27.00826524,84.005,83.917,26.93590717]
[1772462429402,27.00826524,84.0,83.93,10.726]
[1772462429601,27.00826524,84.0,83.917,26.93590717]
[1772462430206,27.00826524,84.029,83.917,26.93590717]
[1772462430604,27.00826524,84.059,83.955,26.93590717]
[1772462431103,27.00826524,84.059,83.978,26.93590717]
[1772462431410,27.00826524,84.059,83.949,26.93590717]
[1772462431703,27.00826524,84.059,83.997,10.717]
[1772462431905,27.00826524,84.059,83.957,26.93590717]
[1772462432101,27.00826524,84.089,83.976,26.93590717]
[1772462432600,27.00826524,84.089,83.978,26.93590717]
[1772462432804,27.00826524,84.089,84.009,26.93590717]
[1772462433098,27.00826524,84.113,84.009,26.93590717]
[1772462433903,27.00826524,84.113,84.036,26.93590717]
[1772462434700,27.00826524,84.139,84.017,166.677]
[1772462435000,27.00826524,84.139,84.018,26.93590717]
[1772462435206,27.00826524,84.139,84.046,26.93590717]
[1772462435608,27.00826524,84.139,84.092,10.705]
[1772462435806,10.697,84.155,84.07,26.93590717]
[1772462436009,27.00826524,84.154,84.07,26.93590717]
[1772462436203,29.66419397,84.2,84.03,29.66419397]
[1772462436204,27.00826524,84.152,84.036,26.93590717]
[1772462436909,27.00826524,84.124,84.056,10.709]
[1772462437309,27.00826524,84.124,84.036,26.93590717]
[1772462437611,27.00826524,84.124,83.975,166.76]
[1772462437612,27.00826524,84.112,84.013,26.93590717]
[1772462438417,27.00826524,84.098,84.013,26.93590717]
[1772462438713,27.00826524,84.122,84.013,26.93590717]
[1772462438907,27.00826524,84.122,84.036,26.93590717]
[1772462439615,27.00826524,84.122,84.048,10.711]
[1772462439906,27.00826524,84.122,84.036,26.93590717]
[1772462439907,27.00826524,84.171,84.054,26.93590717]
[1772462440102,27.00826524,84.171,84.108,10.703]
[1772462440300,31.73240942,84.23,84.081,26.93590717]
[1772462440301,27.00826524,84.229,84.081,26.93590717]
[1772462440511,27.00826524,84.229,84.101,26.93590717]
[1772462440711,10.691,84.203,84.13,10.7]
[1772462440909,27.00826524,84.203,84.101,26.93590717]
[1772462441512,27.00826524,84.194,84.081,26.93590717]
[1772462442313,27.00826524,84.161,84.081,26.93590717]
[1772462442627,27.00826524,84.219,84.081,26.93590717]
[1772462442911,27.00826524,84.206,84.106,26.93590717]
[1772462444313,10.692,84.193,84.123,10.701]
[1772462444519,27.00826524,84.206,84.106,26.93590717]
[1772462444715,27.00826524,84.182,84.109,10.703]
[1772462445019,27.00826524,84.182,84.082,26.93590717]
[1772462445720,10.694,84.176,84.107,10.703]
[1772462445921,27.00826524,84.182,84.082,26.93590717]
[1772462446218,27.00826524,84.182,84.07,19.76174681]
[1772462446412,27.00826524,84.141,84.058,26.93590717]
[1772462446920,10.701,84.123,84.06,10.709]
[1772462447313,27.00826524,84.141,84.032,27.67506705]
[1772462447515,27.00826524,84.141,84.04,10.712]
[1772462447710,27.00826524,84.141,84.032,27.67506705]
[1772462447909,26.39839521,84.129,84.01,27.67506705]
[1772462448316,10.706,84.086,84.02,10.714]
[1772462448510,26.39839521,84.085,83.983,27.67506705]
[1772462448909,10.71,84.053,83.983,27.67506705]
[1772462449113,26.39839521,84.062,83.946,10.64550451]
[1772462449316,26.39839521,84.062,83.951,27.67506705]
[1772462449513,26.39839521,84.062,83.975,27.67506705]
[1772462450414,26.39839521,84.062,83.958,10.64550451]
[1772462450612,26.39839521,84.036,83.953,27.67506705]
[1772462451119,26.39839521,84.036,83.93,32.58744913]
[1772462451321,26.39839521,84.013,83.93,32.58744913]
[1772462451524,26.39839521,84.013,83.931,27.67506705]
[1772462451726,10.714,84.023,83.952,10.723]
[1772462451923,26.39839521,84.039,83.931,27.67506705]
[1772462452927,26.39839521,84.016,83.942,10.724]
[1772462453127,26.39839521,84.016,83.931,27.67506705]
[1772462453825,26.39839521,84.04,83.931,27.67506705]
[1772462454025,26.39839521,84.027,83.931,27.67506705]
[1772462454421,10.716,84.002,83.931,27.67506705]
[1772462454625,26.39839521,84.027,83.931,27.67506705]
[1772462455219,166.561,84.076,83.931,27.67506705]
[1772462455220,26.39839521,84.023,83.931,27.67506705]
[1772462455419,26.39839521,84.023,83.93,32.58744913]
[1772462455725,26.39839521,84.023,83.933,27.67506705]
[1772462456223,10.714,84.021,83.951,10.723]
[1772462456527,26.39839521,84.02,83.933,27.67506705]
[1772462457022,26.39839521,84.014,83.93,32.58744913]
[1772462457215,26.39839521,84.009,83.93,32.58744913]
[1772462457423,26.39839521,83.989,83.908,27.67506705]
[1772462458431,37.11639521,83.989,83.92,10.727]
[1772462458629,26.39839521,84.013,83.908,27.67506705]
[1772462459023,26.39839521,84.013,83.873,166.962]
[1772462459024,26.39839521,83.989,83.89,35.23804797]
[1772462459220,26.39839521,83.989,83.891,27.67506705]
[1772462459630,26.39839521,83.989,83.919,10.727]
[1772462459925,26.39839521,83.989,83.891,27.67506705]
[1772462460320,26.39839521,84.013,83.931,27.67506705]
[1772462461036,26.39839521,84.041,83.931,27.67506705]
[1772462461422,10.712,84.036,83.968,10.721]
[1772462461631,26.39839521,84.035,83.931,27.67506705]
[1772462461926,26.39839521,84.061,83.972,27.67506705]
[1772462462524,19.84668647,84.1,83.972,27.67506705]
[1772462462525,26.39839521,84.058,83.972,27.67506705]
[1772462462729,26.39839521,84.058,83.951,27.67506705]
[1772462463029,166.495,84.11,83.95,19.84668647]
[1772462463030,26.39839521,84.107,84.005,27.67506705]
[1772462463231,26.39839521,84.107,84.011,194.36306705]
[1772462463534,26.39839521,84.128,84.017,27.67506705]
[1772462463729,26.39839521,84.128,84.021,27.67506705]
[1772462463933,26.39839521,84.125,84.05,10.71]
[1772462464232,26.39839521,84.125,84.021,27.67506705]
[1772462464530,26.39839521,84.125,84.049,10.71]
[1772462464737,26.39839521,84.125,84.021,27.67506705]
[1772462465235,10.704,84.103,84.036,10.712]
[1772462465424,26.39839521,84.125,84.021,27.67506705]
[1772462465831,26.39839521,84.1,84.021,27.67506705]
[1772462466831,26.39839521,84.149,84.041,27.67506705]
[1772462467029,26.39839521,84.199,84.056,27.67506705]
[1772462467233,19.84668647,84.2,84.056,27.67506705]
[1772462467234,26.39839521,84.162,84.056,27.67506705]
[1772462468227,26.39839521,84.162,84.094,10.705]
[1772462468629,26.39839521,84.162,84.081,27.67506705]
[1772462468834,10.698,84.149,84.071,10.708]
[1772462469033,26.39839521,84.148,84.057,27.67506705]